Workbook

Sheet Coversheet
B1: Brisbane City Council
B2: Local Government Infrastructure Plan (LGIP)
B5: Anticipated Charges Revenue and Future Cash Flows Model
B7: Version: | C7: LGIP A1b draft
B8: Date: | C8: 2022-08-22
B9: Author: | C9: Brisbane City Council
B12: Model flow diagram (click to follow)

Sheet Modelling inputs
A1: Local Government Infrastructure Plan
A2: Brisbane City Council
A3: =Coversheet!C8 -> 2022-08-22
A4: Input
A5: Formula | C5: General modelling inputs
C7: Model parameters | E7: Value | G7: BCC Comment/Source
C9: Modelling timframes
C11: Modelling start year: | E11: 2021 | G11: Base values for all costs
C12: Modelling end year: | E12: 2036 | G12: N/A
C13: Modelling term (years): | E13: =E12-E11 -> 15 | G13: N/A
C15: Financial inputs
C17: Average 10 Year Bond Rate: | G17: Not used
C18: Basic Margin on 10 Yr. Bond Rate: | G18: Not used
C20: Calculated WACC: | E20: =E18+E17 -> 0 | G20: Not used
C22: Optional WACC over ride: | E22: 0.0591 | G22: Corporately endorsed WACC rate
C24: Applied WACC: | E24: =IF(OR(WACC_override="",WACC_override=0),WACC_Calculated,WACC_override) -> 0.0591 | G24: Defaults to caculated WACC if no override value is entered
C26: Charge inputs
C28: Adopted Charging Source (Default) | E28: BAICR10 | G28: Brisbane Adopted Infrastructure Charges Resolution (No.10) 2021
C30: Escalation Rates - PPI | E30: =(E31/E41)^(1/(C31-C41))-1 -> 0.01820537233 | G30: ten (10) yr. average Roads and Bridges Index between 2011 - 2021 (Mar Qtr.)
C31: 2021 | E31: 119.7807 | G31: three (3) yr. rolling average Roads and Bridges Index (ABS 6427, Table 17, Index 3101, Series ID: A2333727L)
C32: =C31-1 -> 2020
C33: =C32-1 -> 2019
C34: 2018
C35: 2017
C36: 2016
C37: 2015
C38: 2014
C39: 2013
C40: 2012
C41: =C40-1 -> 2011 | E41: 100.0076 | G41: three (3) yr. rolling average Roads and Bridges Index (ABS 6427, Table 17, Index 3101, Series ID: A2333727L)
C42: =C41-1 -> 2010
C43: 2009
C44: 2008
C45: 2007
C46: 2006 | E46: 75.1236 | G46: three (3) yr. rolling average Roads and Bridges Index (ABS 6427, Table 17, Index 3101, Series ID: A2333727L)
C48: Network expenditure inputs
C50: Local Roads | G50: Sourced from LGIP Local Roads network financial model
C52: Pathways | G52: Sourced from LGIP Active and Public Transport network financial model
C54: Ferry Terminals | G54: Sourced from LGIP Active and Public Transport network financial model
C56: Public Parks | G56: Sourced from LGIP Public Parks network financial model
C58: Land for Community Facilities | G58: Sourced from LGIP Land for Community Facilities network financial model
C60: Stormwater | G60: Sourced from LGIP Stormwater network financial model

Sheet Growth (Residential)
A1: Local Government Infrastructure Plan
A2: Brisbane City Council
A3: =Coversheet!C8 -> 2022-08-22 | D3: Input
D4: Formula
A5: 1.1 | B5: Anticipated Residential Growth - Census Year
B7: Development type(1) | C7: Unit of demand(2) | D7: 2021 | E7: 2026 | F7: 2031 | G7: 2036
B8: Attached Dwelling | C8: Number of dwellings: 1 or 2 bedroom dwelling | D8: 117020.112 | E8: 127933.9922 | F8: 141843.3769 | G8: 159073.0881
B9: Attached Dwelling | C9: Number of dwellings: 3 or more bedroom dwelling | D9: 56624.88797 | E9: 61906.00785 | F9: 68636.62311 | G9: 76973.91189
B10: Excluded Attached Dwelling(4) | D10: =D11-D8-D9 -> 8454 | E10: =E11-E8-E9 -> 16010 | F10: 19245 | G10: 21860
B11: Total Attached Dwelling | D11: 182099 | E11: 205850 | F11: 229725 | G11: 257907
B12: Detached Dwelling | C12: Number of dwellings: 1 or 2 bedroom dwelling | D12: 24796.50645 | E12: 25088.04871 | F12: 25283.14802 | G12: 25575.16458
B13: Detached Dwelling | C13: Number of dwellings: 3 or more bedroom dwelling | D13: 288878.4935 | E13: 292274.9513 | F13: 294547.852 | G13: 297949.8354
B14: Excluded Detached Dwelling(4) | D14: =D15-D12-D13 -> 968 | E14: =E15-E12-E13 -> 1000 | F14: 1020 | G14: 1020
B15: Total Detached Dwelling | D15: 314643 | E15: 318363 | F15: 320851 | G15: 324545
B16: Short term accommodation | C16: Number of bedrooms: Bedroom that is not within a suite | D16: 10737.99535 | E16: 11408.79276 | F16: 11778.1598 | G16: 12142.43279
B17: Short term accommodation | C17: Number of suites: Suite with 1 or 2 bedrooms | D17: 5642.551171 | E17: 5995.038628 | F17: 6189.131882 | G17: 6380.548332
B18: Short term accommodation | C18: Number of suites: Suite with 3 or more bedrooms | D18: 1685.779076 | E18: 1791.088884 | F18: 1849.076545 | G18: 1906.26448
B19: Long term accommodation | C19: Number of bedrooms: Bedroom that is not within a suite | D19: 506.0039572 | E19: 537.613781 | F19: 555.0193749 | G19: 572.1849226
B20: Long term accommodation | C20: Number of suites: Suite with 1 or 2 bedrooms | D20: 1659.891413 | E20: 1763.584031 | F20: 1820.681204 | G20: 1876.990932
B21: Long term accommodation | C21: Number of suites: Suite with 3 or more bedrooms | D21: 338.3281361 | E21: 359.463332 | F21: 371.1011899 | G21: 382.5785463
B22: Total Other | D22: =SUM(D16:D21) -> 20570.54911 | E22: =SUM(E16:E21) -> 21855.58142 | F22: 22563.17 | G22: 23261
A24: 1.2 | B24: Anticipated Residential Growth - Annualised (4)
B26: Development type | C26: Unit of demand | D26: 2021 | E26: 2022 | F26: 2023 | G26: 2024 | H26: 2025 | I26: 2026 | J26: 2027 | K26: 2028 | L26: 2029 | M26: 2030 | N26: 2031 | O26: 2032 | P26: 2033 | Q26: 2034 | R26: 2035 | S26: 2036 | U26: Charge Code (3) | V26: Applied Charge
B27: =B8 -> Attached Dwelling | C27: Number of dwellings: 1 or 2 bedroom dwelling | D27: 117020.112 | E27: =($E8-$D8)/5 -> 2182.776025 | F27: 2182.776025 | G27: 2182.776025 | H27: 2182.776025 | I27: 2182.776025 | J27: =($F8-$E8)/5 -> 2781.876947 | K27: 2781.876947 | L27: 2781.876947 | M27: 2781.876947 | N27: 2781.876947 | O27: =($G8-$F8)/5 -> 3445.942243 | P27: 3445.942243 | Q27: 3445.942243 | R27: 3445.942243 | S27: 3445.942243 | U27: B07 | V27: =VLOOKUP(U27,'BAICR Charge Lookup'!A:F,6,FALSE) -> 10907.66
B28: Attached Dwelling | C28: Number of dwellings: 3 or more bedroom dwelling | D28: 56624.88797 | E28: 1056.223975 | F28: 1056.223975 | G28: 1056.223975 | H28: 1056.223975 | I28: 1056.223975 | J28: 1346.123053 | K28: 1346.123053 | L28: 1346.123053 | M28: 1346.123053 | N28: 1346.123053 | O28: 1667.457757 | P28: 1667.457757 | Q28: 1667.457757 | R28: 1667.457757 | S28: 1667.457757 | U28: B08 | V28: =VLOOKUP(U28,'BAICR Charge Lookup'!A:F,6,FALSE) -> 15270.71
B29: =B12 -> Detached Dwelling | C29: Number of dwellings: 1 or 2 bedroom dwelling | D29: 24796.50645 | E29: =($E12-$D12)/5 -> 58.30845034 | F29: 58.30845034 | G29: 58.30845034 | H29: 58.30845034 | I29: 58.30845034 | J29: =($F12-$E12)/5 -> 39.01986319 | K29: 39.01986319 | L29: 39.01986319 | M29: 39.01986319 | N29: 39.01986319 | O29: =($G12-$F12)/5 -> 58.40331225 | P29: 58.40331225 | Q29: 58.40331225 | R29: 58.40331225 | S29: 58.40331225 | U29: A01 | V29: =VLOOKUP(U29,'BAICR Charge Lookup'!A:F,6,FALSE) -> 15270.71
B30: Detached Dwelling | C30: Number of dwellings: 3 or more bedroom dwelling | D30: 288878.4935 | E30: 679.2915497 | F30: 679.2915497 | G30: 679.2915497 | H30: 679.2915497 | I30: 679.2915497 | J30: 454.5801368 | K30: 454.5801368 | L30: 454.5801368 | M30: 454.5801368 | N30: 454.5801368 | O30: 680.3966878 | P30: 680.3966878 | Q30: 680.3966878 | R30: 680.3966878 | S30: 680.3966878 | U30: A01 | V30: =VLOOKUP(U30,'BAICR Charge Lookup'!A:F,6,FALSE) -> 15270.71
B31: =B16 -> Short term accommodation | C31: Number of bedrooms: Bedroom that is not within a suite | D31: 10737.99535 | E31: =($E16-$D16)/5 -> 134.1594809 | F31: 134.1594809 | G31: 134.1594809 | H31: 134.1594809 | I31: 134.1594809 | J31: =($F16-$E16)/5 -> 73.87340896 | K31: 73.87340896 | L31: 73.87340896 | M31: 73.87340896 | N31: 73.87340896 | O31: =($G16-$F16)/5 -> 72.85459672 | P31: 72.85459672 | Q31: 72.85459672 | R31: 72.85459672 | S31: 72.85459672 | U31: C01 | V31: =VLOOKUP(U31,'BAICR Charge Lookup'!A:F,6,FALSE) -> 5453.8
B32: Short term accommodation | C32: Number of suites: Suite with 1 or 2 bedrooms | D32: 5642.551171 | E32: 70.49749147 | F32: 70.49749147 | G32: 70.49749147 | H32: 70.49749147 | I32: 70.49749147 | J32: 38.81865064 | K32: 38.81865064 | L32: 38.81865064 | M32: 38.81865064 | N32: 38.81865064 | O32: 38.28328999 | P32: 38.28328999 | Q32: 38.28328999 | R32: 38.28328999 | S32: 38.28328999 | U32: C02 | V32: =VLOOKUP(U32,'BAICR Charge Lookup'!A:F,6,FALSE) -> 5453.8
B33: Short term accommodation | C33: Number of suites: Suite with 3 or more bedrooms | D33: 1685.779076 | E33: 21.06196159 | F33: 21.06196159 | G33: 21.06196159 | H33: 21.06196159 | I33: 21.06196159 | J33: 11.59753222 | K33: 11.59753222 | L33: 11.59753222 | M33: 11.59753222 | N33: 11.59753222 | O33: 11.43758688 | P33: 11.43758688 | Q33: 11.43758688 | R33: 11.43758688 | S33: 11.43758688 | U33: C03 | V33: =VLOOKUP(U33,'BAICR Charge Lookup'!A:F,6,FALSE) -> 7635.32
B34: Long term accommodation | C34: Number of bedrooms: Bedroom that is not within a suite | D34: 506.0039572 | E34: 6.321964759 | F34: 6.321964759 | G34: 6.321964759 | H34: 6.321964759 | I34: 6.321964759 | J34: 3.481118778 | K34: 3.481118778 | L34: 3.481118778 | M34: 3.481118778 | N34: 3.481118778 | O34: 3.433109536 | P34: 3.433109536 | Q34: 3.433109536 | R34: 3.433109536 | S34: 3.433109536 | U34: D01 | V34: =VLOOKUP(U34,'BAICR Charge Lookup'!A:F,6,FALSE) -> 10907.66
B35: Long term accommodation | C35: Number of suites: Suite with 1 or 2 bedrooms | D35: 1659.891413 | E35: 20.73852361 | F35: 20.73852361 | G35: 20.73852361 | H35: 20.73852361 | I35: 20.73852361 | J35: 11.41943474 | K35: 11.41943474 | L35: 11.41943474 | M35: 11.41943474 | N35: 11.41943474 | O35: 11.26194559 | P35: 11.26194559 | Q35: 11.26194559 | R35: 11.26194559 | S35: 11.26194559 | U35: D02 | V35: =VLOOKUP(U35,'BAICR Charge Lookup'!A:F,6,FALSE) -> 10907.66
B36: Long term accommodation | C36: Number of suites: Suite with 3 or more bedrooms | D36: 338.3281361 | E36: 4.227039182 | F36: 4.227039182 | G36: 4.227039182 | H36: 4.227039182 | I36: 4.227039182 | J36: 2.327571575 | K36: 2.327571575 | L36: 2.327571575 | M36: 2.327571575 | N36: 2.327571575 | O36: 2.295471278 | P36: 2.295471278 | Q36: 2.295471278 | R36: 2.295471278 | S36: 2.295471278 | U36: D03 | V36: =VLOOKUP(U36,'BAICR Charge Lookup'!A:F,6,FALSE) -> 15270.71
A38: 1.3 | B38: Anticipated Revenue - Applied Charge (3)
B40: Development type | C40: Unit of demand | D40: 2021 | E40: 2022 | F40: 2023 | G40: 2024 | H40: 2025 | I40: 2026 | J40: 2027 | K40: 2028 | L40: 2029 | M40: 2030 | N40: 2031 | O40: 2032 | P40: 2033 | Q40: 2034 | R40: 2035 | S40: 2036
B41: =B8 -> Attached Dwelling | C41: =C8 -> Number of dwellings: 1 or 2 bedroom dwelling | D41: N/A | E41: =E27*$V27*(1+PPI)^(E40-BaseYear) -> 24242430.06 | F41: 24683772.53 | G41: 25133149.79 | H41: 25590708.14 | I41: 26056596.51 | J41: 33812852.71 | K41: 34428428.29 | L41: 35055210.64 | M41: 35693403.81 | N41: 36343215.51 | O41: 45838332.66 | P41: 46672836.57 | Q41: 47522532.94 | R41: 48387698.35 | S41: 49268614.41
B42: =B9 -> Attached Dwelling | C42: =C9 -> Number of dwellings: 3 or more bedroom dwelling | D42: N/A | E42: =E28*$V28*(1+PPI)^(E$40-BaseYear) -> 16422929.75 | F42: =F28*$V28*(1+PPI)^(F40-BaseYear) -> 16721915.3 | G42: 17026343.99 | H42: 17336314.92 | I42: 17651928.99 | J42: 22906371.32 | K42: 23323390.34 | L42: 23748001.35 | M42: 24180342.55 | N42: 24620554.69 | O42: 31052980.88 | P42: 31618311.95 | Q42: 32193935.1 | R42: 32780037.67 | S42: 33376810.46
B43: =B12 -> Detached Dwelling | C43: =C12 -> Number of dwellings: 1 or 2 bedroom dwelling | D43: N/A | E43: 906621.7074 | F43: =F29*$V29*(1+PPI)^(F$40-BaseYear) -> 923127.0932 | G43: 939932.9656 | H43: 957044.7952 | I43: 974468.1521 | J43: 663983.4844 | K43: 676071.5509 | L43: 688379.6852 | M43: 700911.8937 | N43: 713672.2557 | O43: 1087641.909 | P43: 1107442.835 | Q43: 1127604.244 | R43: 1148132.7 | S43: 1169034.883
B44: =B13 -> Detached Dwelling | C44: =C13 -> Number of dwellings: 3 or more bedroom dwelling | D44: N/A | E44: 10562113.4 | F44: =F30*$V30*(1+PPI)^(F$40-BaseYear) -> 10754400.61 | G44: 10950188.47 | H44: 11149540.73 | I44: 11352522.27 | J44: 7735385.993 | K44: 7876211.575 | L44: 8019600.939 | M44: 8165600.761 | N44: 8314258.563 | O44: 12670992.86 | P44: 12901673.01 | Q44: 13136552.77 | R44: 13375708.6 | S44: 13619218.36
B45: =B16 -> Short term accommodation | C45: Number of bedrooms: Bedroom that is not within a suite | D45: N/A | E45: 744999.4649 | F45: =F31*$V31*(1+PPI)^(F$40-BaseYear) -> 758562.4576 | G45: 772372.3696 | H45: 786433.6961 | I45: 800751.0144 | J45: 448951.7337 | K45: 457125.0672 | L45: 465447.1993 | M45: 473920.8388 | N45: 482548.7441 | O45: 484557.5803 | P45: 493379.1315 | Q45: 502361.2823 | R45: 511506.9565 | S45: 520819.1311
B46: Short term accommodation | C46: Number of suites: Suite with 1 or 2 bedrooms | D46: N/A | E46: 391478.8063 | F46: =F32*$V32*(1+PPI)^(F$40-BaseYear) -> 398605.8237 | G46: 405862.5912 | H46: 413251.4707 | I46: 420774.8676 | J46: 235913.0403 | K46: 240207.925 | L46: 244580.9998 | M46: 249033.6879 | N46: 253567.4389 | O46: 254623.0327 | P46: 259258.5398 | Q46: 263978.4381 | R46: 268784.2638 | S46: 273677.5814
B47: Short term accommodation | C47: Number of suites: Suite with 3 or more bedrooms | D47: N/A | E47: 163742.5102 | F47: =F33*$V33*(1+PPI)^(F$40-BaseYear) -> 166723.5036 | G47: 169758.767 | H47: 172849.2886 | I47: 175996.0742 | J47: 98674.54582 | K47: 100470.9527 | L47: 102300.0638 | M47: 104162.4745 | N47: 106058.7912 | O47: 106500.3108 | P47: 108439.1886 | Q47: 110413.3644 | R47: 112423.4808 | S47: 114470.1921
B48: Long term accommodation | C48: Number of bedrooms: Bedroom that is not within a suite | D48: N/A | E48: 70213.24532 | F48: =F34*$V34*(1+PPI)^(F$40-BaseYear) -> 71491.50359 | G48: 72793.03303 | H48: 74118.2573 | I48: 75467.60777 | J48: 42311.92061 | K48: 43082.22488 | L48: 43866.55282 | M48: 44665.15975 | N48: 45478.30562 | O48: 45667.63046 | P48: 46499.02667 | Q48: 47345.55877 | R48: 48207.50229 | S48: 49085.13782
B49: Long term accommodation | C49: Number of suites: Suite with 1 or 2 bedrooms | D49: N/A | E49: 230326.9792 | F49: =F35*$V35*(1+PPI)^(F$40-BaseYear) -> 234520.1677 | G49: 238789.6946 | H49: 243136.9499 | I49: 247563.3486 | J49: 138799.6925 | K49: 141326.5926 | L49: 143899.4958 | M49: 146519.2397 | N49: 149186.677 | O49: 149807.7368 | P49: 152535.0424 | Q49: 155311.9996 | R49: 158139.5124 | S49: 161018.5011
B50: Long term accommodation | C50: Number of suites: Suite with 3 or more bedrooms | D50: N/A | E50: 65725.04428 | F50: =F36*$V36*(1+PPI)^(F$40-BaseYear) -> 66921.59319 | G50: 68139.92571 | H50: 69380.43842 | I50: 70643.53514 | J50: 39607.23996 | K50: 40328.30451 | L50: 41062.49631 | M50: 41810.05435 | N50: 42571.22195 | O50: 42748.44469 | P50: 43526.69605 | Q50: 44319.11575 | R50: 45125.96176 | S50: 45947.49669
B51: Total | C51: N/A | D51: N/A | E51: =SUM(E41:E50) -> 53800580.96 | F51: 54780040.57 | G51: 55777331.61 | H51: 56792778.7 | I51: 57826712.38 | J51: 66122851.69 | K51: 67326642.82 | L51: 68552349.42 | M51: 69800370.47 | N51: 71071112.2 | O51: 91733853.05 | P51: 93403902 | Q51: 95104354.81 | R51: 96835765 | S51: 98598696.16
A53: Notes:
A54: (1) Attached and detached dwellings growth figures are based on the predicted residential dwelling supply. Short and long term accommodation growth figures are based on land use counts and growth rates sourced from LGIP planning assumptions.
A55: (2) Unit of demand is based on the current Adopted Infrastructure Charge Resolution.
A56: (3) To reflect the development practice, charges apply when a subdivision of residential lots occurs for detached dwellings.
A57: (4) Planning Scheme zones exlude Priority Development Areas, Special Purpose Zones for Airport, Port and Southbank

Sheet Growth (Non-Residential)
A1: Local Government Infrastructure Plan
A2: Brisbane City Council
A3: =Coversheet!C8 -> 2022-08-22 | D3: Input
D4: Formula
A5: 2.1 | B5: Anticipated Non Residential Growth - Census Year
B7: Development type(1) | C7: Unit of demand(2) | D7: 2021 | E7: 2026 | F7: 2031 | G7: 2036
B8: Food Services, Arts & Recreation | C8: m2 GFA | D8: 1500534 | E8: 1590104 | F8: 1673068 | G8: 1741945
B9: Community - Education | C9: m2 GFA | D9: 3667784 | E9: 4113498 | F9: 4519897 | G9: 4880222
B10: Community - Health | C10: m2 GFA | D10: 948051 | E10: 1063259 | F10: 1168305 | G10: 1261442
B11: Community - Other | C11: m2 GFA | D11: 1119039 | E11: 1255026 | F11: 1379018 | G11: 1488953
B12: Industry - General | C12: m2 GFA | D12: 507969 | E12: 534186 | F12: 552178 | G12: 563738
B13: Industry - Heavy | C13: m2 GFA | D13: 294936 | E13: 310158 | F13: 320605 | G13: 327317
B14: Industry - Light | C14: m2 GFA | D14: 6160939 | E14: 6478910 | F14: 6697124 | G14: 6837334
B15: Industry - Other | C15: m2 GFA | D15: 117140 | E15: 123186 | F15: 127335 | G15: 130000
B16: Office | C16: m2 GFA | D16: 5970560 | E16: 6394623 | F16: 6826675 | G16: 7189283
B17: Retail | C17: m2 GFA | D17: 3391391 | E17: 3593829 | F17: 3781338 | G17: 3937009
B18: Showroom, Retail Warehouse & Bulky Goods | C18: m2 GFA | D18: 947121 | E18: 1003656 | F18: 1056022 | G18: 1099497
B19: Warehouse, Bulk Stores & Logistics | C19: m2 GFA | D19: 8377728 | E19: 8810108 | F19: 9106839 | G19: 9297499
B20: Rural | C20: m2 GFA | D20: 5710 | E20: 6012 | F20: 6234 | G20: 6417
B21: Excluded(3) | C21: m2 GFA | D21: 3294176 | E21: 3477215 | F21: 3624551 | G21: 3760113
B22: Total | C22: m2 GFA | D22: 36303078 | E22: 38753770 | F22: 40839189 | G22: 42520769
A24: 2.2 | B24: Anticipated Non Residential Growth - Annualised (3)
B26: Development type | C26: Unit of demand | D26: 2021 | E26: 2022 | F26: 2023 | G26: 2024 | H26: 2025 | I26: 2026 | J26: 2027 | K26: 2028 | L26: 2029 | M26: 2030 | N26: 2031 | O26: 2032 | P26: 2033 | Q26: 2034 | R26: 2035 | S26: 2036 | U26: Charge Code | V26: Applied Charge
B27: =B8 -> Food Services, Arts & Recreation | C27: m2 GFA | D27: 1500534 | E27: =($E8-$D8)/5 -> 17914 | F27: 17914 | G27: 17914 | H27: 17914 | I27: 17914 | J27: =($F8-$E8)/5 -> 16592.8 | K27: 16592.8 | L27: 16592.8 | M27: 16592.8 | N27: 16592.8 | O27: 16592.8 | P27: 16592.8 | Q27: 16592.8 | R27: 16592.8 | S27: 16592.8 | U27: G02 | V27: =VLOOKUP(U27,'BAICR Charge Lookup'!A:F,6,FALSE) -> 157.05
B28: Community - Education | C28: m2 GFA | D28: 3667784 | E28: 89142.8 | F28: 89142.8 | G28: 89142.8 | H28: 89142.8 | I28: 89142.8 | J28: =($F9-$E9)/5 -> 81279.8 | K28: 81279.8 | L28: 81279.8 | M28: 81279.8 | N28: 81279.8 | O28: 81279.8 | P28: 81279.8 | Q28: 81279.8 | R28: 81279.8 | S28: 81279.8 | U28: I03 | V28: =VLOOKUP(U28,'BAICR Charge Lookup'!A:F,6,FALSE) -> 113.45
B29: Community - Health | C29: m2 GFA | D29: 948051 | E29: 23041.6 | F29: 23041.6 | G29: 23041.6 | H29: 23041.6 | I29: 23041.6 | J29: =($F10-$E10)/5 -> 21009.2 | K29: 21009.2 | L29: 21009.2 | M29: 21009.2 | N29: 21009.2 | O29: 21009.2 | P29: 21009.2 | Q29: 21009.2 | R29: 21009.2 | S29: 21009.2 | U29: P03 | V29: =VLOOKUP(U29,'BAICR Charge Lookup'!A:F,6,FALSE) -> 113.45
B30: Community - Other | C30: m2 GFA | D30: 1119039 | E30: 27197.4 | F30: 27197.4 | G30: 27197.4 | H30: 27197.4 | I30: 27197.4 | J30: =($F11-$E11)/5 -> 24798.4 | K30: 24798.4 | L30: 24798.4 | M30: 24798.4 | N30: 24798.4 | O30: 24798.4 | P30: 24798.4 | Q30: 24798.4 | R30: 24798.4 | S30: 24798.4 | U30: E02 | V30: =VLOOKUP(U30,'BAICR Charge Lookup'!A:F,6,FALSE) -> 37.1
B31: Industry - General | C31: m2 GFA | D31: 507969 | E31: 5243.4 | F31: 5243.4 | G31: 5243.4 | H31: 5243.4 | I31: 5243.4 | J31: =($F12-$E12)/5 -> 3598.4 | K31: 3598.4 | L31: 3598.4 | M31: 3598.4 | N31: 3598.4 | O31: 3598.4 | P31: 3598.4 | Q31: 3598.4 | R31: 3598.4 | S31: 3598.4 | U31: L02 | V31: =VLOOKUP(U31,'BAICR Charge Lookup'!A:F,6,FALSE) -> 15.28
B32: Industry - Heavy | C32: m2 GFA | D32: 294936 | E32: 3044.4 | F32: 3044.4 | G32: 3044.4 | H32: 3044.4 | I32: 3044.4 | J32: =($F13-$E13)/5 -> 2089.4 | K32: 2089.4 | L32: 2089.4 | M32: 2089.4 | N32: 2089.4 | O32: 2089.4 | P32: 2089.4 | Q32: 2089.4 | R32: 2089.4 | S32: 2089.4 | U32: M01 | V32: =VLOOKUP(U32,'BAICR Charge Lookup'!A:F,6,FALSE) -> 32.71
B33: Industry - Light | C33: m2 GFA | D33: 6160939 | E33: 63594.2 | F33: 63594.2 | G33: 63594.2 | H33: 63594.2 | I33: 63594.2 | J33: =($F14-$E14)/5 -> 43642.8 | K33: 43642.8 | L33: 43642.8 | M33: 43642.8 | N33: 43642.8 | O33: 43642.8 | P33: 43642.8 | Q33: 43642.8 | R33: 43642.8 | S33: 43642.8 | U33: L01 | V33: =VLOOKUP(U33,'BAICR Charge Lookup'!A:F,6,FALSE) -> 15.28
B34: Industry - Other | C34: m2 GFA | D34: 117140 | E34: 1209.2 | F34: 1209.2 | G34: 1209.2 | H34: 1209.2 | I34: 1209.2 | J34: =($F15-$E15)/5 -> 829.8 | K34: 829.8 | L34: 829.8 | M34: 829.8 | N34: 829.8 | O34: 829.8 | P34: 829.8 | Q34: 829.8 | R34: 829.8 | S34: 829.8 | U34: L01 | V34: =VLOOKUP(U34,'BAICR Charge Lookup'!A:F,6,FALSE) -> 15.28
B35: Office | C35: m2 GFA | D35: 5970560 | E35: 84812.6 | F35: 84812.6 | G35: 84812.6 | H35: 84812.6 | I35: 84812.6 | J35: =($F16-$E16)/5 -> 86410.4 | K35: 86410.4 | L35: 86410.4 | M35: 86410.4 | N35: 86410.4 | O35: 86410.4 | P35: 86410.4 | Q35: 86410.4 | R35: 86410.4 | S35: 86410.4 | U35: H01 | V35: =VLOOKUP(U35,'BAICR Charge Lookup'!A:F,6,FALSE) -> 113.45
B36: Retail | C36: m2 GFA | D36: 3391391 | E36: 40487.6 | F36: 40487.6 | G36: 40487.6 | H36: 40487.6 | I36: 40487.6 | J36: =($F17-$E17)/5 -> 37501.8 | K36: 37501.8 | L36: 37501.8 | M36: 37501.8 | N36: 37501.8 | O36: 37501.8 | P36: 37501.8 | Q36: 37501.8 | R36: 37501.8 | S36: 37501.8 | U36: G05 | V36: =VLOOKUP(U36,'BAICR Charge Lookup'!A:F,6,FALSE) -> 157.05
B37: Showroom, Retail Warehouse & Bulky Goods | C37: m2 GFA | D37: 947121 | E37: 11307 | F37: 11307 | G37: 11307 | H37: 11307 | I37: 11307 | J37: =($F18-$E18)/5 -> 10473.2 | K37: 10473.2 | L37: 10473.2 | M37: 10473.2 | N37: 10473.2 | O37: 10473.2 | P37: 10473.2 | Q37: 10473.2 | R37: 10473.2 | S37: 10473.2 | U37: F06 | V37: =VLOOKUP(U37,'BAICR Charge Lookup'!A:F,6,FALSE) -> 113.45
B38: Warehouse, Bulk Stores & Logistics | C38: m2 GFA | D38: 8377728 | E38: 86476 | F38: 86476 | G38: 86476 | H38: 86476 | I38: 86476 | J38: =($F19-$E19)/5 -> 59346.2 | K38: 59346.2 | L38: 59346.2 | M38: 59346.2 | N38: 59346.2 | O38: 59346.2 | P38: 59346.2 | Q38: 59346.2 | R38: 59346.2 | S38: 59346.2 | U38: L05 | V38: =VLOOKUP(U38,'BAICR Charge Lookup'!A:F,6,FALSE) -> 15.28
B39: Rural | C39: m2 GFA | D39: 5710 | E39: 60.4 | F39: 60.4 | G39: 60.4 | H39: 60.4 | I39: 60.4 | J39: =($F20-$E20)/5 -> 44.4 | K39: 44.4 | L39: 44.4 | M39: 44.4 | N39: 44.4 | O39: 44.4 | P39: 44.4 | Q39: 44.4 | R39: 44.4 | S39: 44.4 | U39: N01 | V39: =VLOOKUP(U39,'BAICR Charge Lookup'!A:F,6,FALSE) -> 0
A41: 2.3 | B41: Anticipated Revenue - Applied Charge
B43: Development type | C43: Unit of demand | D43: 2021 | E43: 2022 | F43: 2023 | G43: 2024 | H43: 2025 | I43: 2026 | J43: 2027 | K43: 2028 | L43: 2029 | M43: 2030 | N43: 2031 | O43: 2032 | P43: 2033 | Q43: 2034 | R43: 2035 | S43: 2036
B44: =B8 -> Food Services, Arts & Recreation | C44: m2 GFA | D44: N/A | E44: =E27*$V27*(1+PPI)^(E$43-BaseYear) -> 2864612.58 | F44: 2916763.918 | G44: 2969864.692 | H44: 3023932.184 | I44: 3078983.995 | J44: 2903821.552 | K44: 2956686.704 | L44: 3010514.287 | M44: 3065321.82 | N44: 3121127.145 | O44: 3177948.427 | P44: 3235804.161 | Q44: 3294713.181 | R44: 3354694.661 | S44: 3415768.127
B45: Community - Education | C45: m2 GFA | D45: N/A | E45: =E28*$V28*(1+PPI)^(E$43-BaseYear) -> 10297366.15 | F45: 10484833.54 | G45: 10675713.84 | H45: 10870069.18 | I45: 11067962.84 | J45: 10275416.43 | K45: 10462484.21 | L45: 10652957.63 | M45: 10846898.69 | N45: 11044370.52 | O45: 11245437.4 | P45: 11450164.78 | Q45: 11658619.29 | R45: 11870868.79 | S45: 12086982.38
B46: Community - Health | C46: m2 GFA | D46: N/A | E46: =E29*$V29*(1+PPI)^(E$43-BaseYear) -> 2661659.629 | F46: 2710116.133 | G46: 2759454.807 | H46: 2809691.709 | I46: 2860843.193 | J46: 2655989.297 | K46: 2704342.571 | L46: 2753576.135 | M46: 2803706.013 | N46: 2854748.525 | O46: 2906720.285 | P46: 2959638.21 | Q46: 3013519.526 | R46: 3068381.771 | S46: 3124242.803
B47: Community - Other | C47: m2 GFA | D47: N/A | E47: =E30*$V30*(1+PPI)^(E$43-BaseYear) -> 1027393.189 | F47: 1046097.265 | G47: 1065141.855 | H47: 1084533.159 | I47: 1104277.489 | J47: 1025203.017 | K47: 1043867.22 | L47: 1062871.211 | M47: 1082221.177 | N47: 1101923.417 | O47: 1121984.343 | P47: 1142410.485 | Q47: 1163208.494 | R47: 1184385.137 | S47: 1205947.31
B48: Industry - General | C48: m2 GFA | D48: N/A | E48: =E31*$V31*(1+PPI)^(E$43-BaseYear) -> 81577.75099 | F48: 83062.90432 | G48: 84575.09542 | H48: 86114.81653 | I48: 87682.56883 | J48: 61269.60738 | K48: 62385.04339 | L48: 63520.78633 | M48: 64677.2059 | N48: 65854.67851 | O48: 67053.58746 | P48: 68274.32298 | Q48: 69517.28245 | R48: 70782.87046 | S48: 72071.49898
B49: Industry - Heavy | C49: m2 GFA | D49: N/A | E49: =E32*$V32*(1+PPI)^(E$43-BaseYear) -> 101395.2573 | F49: 103241.1957 | G49: 105120.7401 | H49: 107034.5023 | I49: 108983.1053 | J49: 76157.80869 | K49: 77544.28995 | L49: 78956.01263 | M49: 80393.43623 | N49: 81857.02867 | O49: 83347.26636 | P49: 84864.63438 | Q49: 86409.62664 | R49: 87982.74607 | S49: 89584.50472
B50: Industry - Light | C50: m2 GFA | D50: N/A | E50: =E33*$V33*(1+PPI)^(E$43-BaseYear) -> 989409.889 | F50: 1007422.464 | G50: 1025762.966 | H50: 1044437.362 | I50: 1063451.733 | J50: 743101.7176 | K50: 756630.1611 | L50: 770404.8949 | M50: 784430.4029 | N50: 798711.2504 | O50: 813252.0861 | P50: 828057.6431 | Q50: 843132.7408 | R50: 858482.2863 | S50: 874111.276
B51: Industry - Other | C51: m2 GFA | D51: N/A | E51: =E34*$V34*(1+PPI)^(E$43-BaseYear) -> 18812.94895 | F51: 19155.44569 | G51: 19504.17771 | H51: 19859.25852 | I51: 20220.80372 | J51: 14128.92402 | K51: 14386.14634 | L51: 14648.0515 | M51: 14914.72473 | N51: 15186.25284 | O51: 15462.72423 | P51: 15744.22888 | Q51: 16030.85843 | R51: 16322.70618 | S51: 16619.86712
B52: Office | C52: m2 GFA | D52: N/A | E52: =E35*$V35*(1+PPI)^(E$43-BaseYear) -> 9797161.371 | F52: 9975522.341 | G52: 10157130.44 | H52: 10342044.78 | I52: 10530325.56 | J52: 10924028.4 | K52: 11122904.41 | L52: 11325401.03 | M52: 11531584.17 | N52: 11741520.95 | O52: 11955279.71 | P52: 12172930.03 | Q52: 12394542.75 | R52: 12620190.02 | S52: 12849945.28
B53: Retail | C53: m2 GFA | D53: N/A | E53: =E36*$V36*(1+PPI)^(E$43-BaseYear) -> 6474337.852 | F53: 6592205.584 | G53: 6712219.141 | H53: 6834417.589 | I53: 6958840.706 | J53: 6562999.317 | K53: 6682481.164 | L53: 6804138.221 | M53: 6928010.091 | N53: 7054137.094 | O53: 7182560.287 | P53: 7313321.471 | Q53: 7446463.211 | R53: 7582028.847 | S53: 7720062.505
B54: Showroom, Retail Warehouse & Bulky Goods | C54: m2 GFA | D54: N/A | E54: =E37*$V37*(1+PPI)^(E$43-BaseYear) -> 1306132.622 | F54: 1329911.253 | G54: 1354122.782 | H54: 1378775.092 | I54: 1403876.206 | J54: 1324025.051 | K54: 1348129.42 | L54: 1372672.618 | M54: 1397662.634 | N54: 1423107.603 | O54: 1449015.807 | P54: 1475395.679 | Q54: 1502255.807 | R54: 1529604.933 | S54: 1557451.961
B55: Warehouse, Bulk Stores & Logistics | C55: m2 GFA | D55: N/A | E55: =E38*$V38*(1+PPI)^(E$43-BaseYear) -> 1345409.008 | F55: 1369902.68 | G55: 1394842.269 | H55: 1420235.892 | I55: 1446091.815 | J55: 1010481.985 | K55: 1028878.185 | L55: 1047609.296 | M55: 1066681.413 | N55: 1086100.745 | O55: 1105873.614 | P55: 1126006.455 | Q55: 1146505.821 | R55: 1167378.387 | S55: 1188630.945
B56: Rural | C56: m2 GFA | D56: N/A | E56: =E39*$V39*(1+PPI)^(E$43-BaseYear) -> 0 | F56: 0 | G56: 0 | H56: 0 | I56: 0 | J56: 0 | K56: 0 | L56: 0 | M56: 0 | N56: 0 | O56: 0 | P56: 0 | Q56: 0 | R56: 0 | S56: 0
B57: Total | C57: N/A | D57: N/A | E57: =SUM(E44:E56) -> 36965268.25 | F57: =SUM(F44:F56) -> 37638234.72 | G57: 38323452.8 | H57: 39021145.53 | I57: 39731540.01 | J57: 37576623.11 | K57: 38260719.53 | L57: 38957270.17 | M57: 39666501.78 | N57: 40388645.21 | O57: 41123935.54 | P57: 41872612.1 | Q57: 42634918.59 | R57: 43411103.16 | S57: 44201418.45
A59: Notes:
A60: (1) Growth figures are based on land use counts and growth rates sourced from LGIP planning assumptions.
A61: (2) Unit of demand is based on the current Adopted Infrastructure Charge Resolution.
A62: (3) Planning Scheme zones exlude Priority Development Areas, Special Purpose Zones for Airport, Port and Southbank

Sheet Growth (Impervious Area)
A1: Local Government Infrastructure Plan
A2: Brisbane City Council
A3: =Coversheet!C8 -> 2022-08-22 | D3: Input
D4: Formula
A5: 3.1 | B5: Anticipated Impervious Area Growth - Census Year
B7: Development type(1) | C7: Unit of demand(2) | D7: 2021 | E7: 2026 | F7: 2031 | G7: 2036
B8: Non-residential Stormwater Impervious Area | C8: Impervious area in m2 | D8: 68310898.86 | E8: 70604374.17 | F8: 72949608.39 | G8: 75066714.19
A10: 3.2 | B10: Anticipated Non Residential Growth - Annualised (3)
B12: Development type | C12: Unit of demand | D12: 2021 | E12: 2022 | F12: 2023 | G12: 2024 | H12: 2025 | I12: 2026 | J12: 2027 | K12: 2028 | L12: 2029 | M12: 2030 | N12: 2031 | O12: 2032 | P12: 2033 | Q12: 2034 | R12: 2035 | S12: 2036 | U12: Charge Code | V12: Applied Charge
B13: Non-residential Stormwater Impervious Area | C13: Impervious area in m2 | D13: =D8 -> 68310898.86 | E13: =($E8-$D8)/5 -> 458695.0619 | F13: =($E8-$D8)/5 -> 458695.0619 | G13: 458695.0619 | H13: 458695.0619 | I13: 458695.0619 | J13: =($F8-$E8)/5 -> 469046.8444 | K13: =($F8-$E8)/5 -> 469046.8444 | L13: 469046.8444 | M13: 469046.8444 | N13: 469046.8444 | O13: =($G8-$F8)/5 -> 423421.1603 | P13: =($G8-$F8)/5 -> 423421.1603 | Q13: 423421.1603 | R13: 423421.1603 | S13: 423421.1603 | U13: T01 | V13: =VLOOKUP(U13,'BAICR Charge Lookup'!A:F,6,FALSE) -> 10.91
A15: 2.3 | B15: Anticipated Revenue - Applied Charge
B17: Development type | C17: Unit of demand | D17: 2021 | E17: 2022 | F17: 2023 | G17: 2024 | H17: 2025 | I17: 2026 | J17: 2027 | K17: 2028 | L17: 2029 | M17: 2030 | N17: 2031 | O17: 2032 | P17: 2033 | Q17: 2034 | R17: 2035 | S17: 2036
B18: Non-residential Stormwater Impervious Area | C18: Impervious area in m2 | D18: N/A | E18: =E13*$V13*(1+PPI)^(E$17-BaseYear) -> 5095469.419 | F18: 5188234.337 | G18: 5282688.075 | H18: 5378861.378 | I18: 5476785.552 | J18: 5702342.176 | K18: 5806155.438 | L18: 5911858.66 | M18: 6019486.248 | N18: 6129073.236 | O18: 5633606.83 | P18: 5736168.74 | Q18: 5840597.828 | R18: 5946928.086 | S18: 6055194.126
A20: Notes:
A21: (1) Growth figures are based on impervious area in non-residential city plan zones. Growth in centre, mixed use and residential zones have been excluded.
A22: (2) Unit of demand is based on the current Adopted Infrastructure Charge Resolution.
A23: (3) Planning Scheme zones exlude Priority Development Areas, Special Purpose Zones for Airport, Port and Southbank

Sheet BAICR Charge Lookup
A1: Local Government Infrastructure Plan
A2: Brisbane City Council
A3: =Coversheet!C8 -> 2022-08-22
A5: Charges categories, sub-categories, demand units, and applied adopted charge (AAC) rate - Lookup table
A6: Brisbane Adopted Infrastructure Charges Resolution (No.10) 2022
A8: 4.1 Reconfiguration of a Lot
A9: Code | B9: Category | C9: Sub Category | D9: Demand Unit | F9: AICR10 Charge | G9: Alt. Charge
A10: A01 | B10: 01 Residential (Reconfiguration of a Lot) | C10: Residential Lot | D10: Number of residential lots | F10: 15270.71 | G10: 0
A11: A02 | B11: 02 Non-Residential (Reconfiguration of a Lot) | C11: Non-Residential Lot | D11: Number of non-residential lots | F11: 15270.71 | G11: 0
A13: 4.2 Material Change of Use (Residential - Transport, Community Purposes, and Waterways)
A14: Code | B14: Category | C14: Sub Category | D14: Demand Unit | F14: AICR10 Charge | G14: Alt. Charge
A15: B01 | B15: 01 Residential (Material Change of Use/Building Work) | C15: Caretaker's accommodation - 1 or 2 bedroom dwelling | D15: Number of dwellings: 1 or 2 bedroom dwelling | F15: 10907.66 | G15: 0
A16: B02 | B16: 01 Residential (Material Change of Use/Building Work) | C16: Caretaker's accommodation - 3 or more bedroom dwelling | D16: Number of dwellings: 3 or more bedroom dwelling | F16: 15270.71 | G16: 0
A17: B03 | B17: 01 Residential (Material Change of Use/Building Work) | C17: Dwelling house - 1 or 2 bedroom dwelling | D17: Number of dwellings: 1 or 2 bedroom dwelling | F17: 10907.66 | G17: 0
A18: B04 | B18: 01 Residential (Material Change of Use/Building Work) | C18: Dwelling house - 3 or more bedroom dwelling | D18: Number of dwellings: 3 or more bedroom dwelling | F18: 15270.71 | G18: 0
A19: B05 | B19: 01 Residential (Material Change of Use/Building Work) | C19: Dual occupancy - 1 or 2 bedroom dwelling | D19: Number of dwellings: 1 or 2 bedroom dwelling | F19: 10907.66 | G19: 0
A20: B06 | B20: 01 Residential (Material Change of Use/Building Work) | C20: Dual occupancy - 3 or more bedroom dwelling | D20: Number of dwellings: 3 or more bedroom dwelling | F20: 15270.71 | G20: 0
A21: B07 | B21: 01 Residential (Material Change of Use/Building Work) | C21: Multiple dwelling - 1 or 2 bedroom dwelling | D21: Number of dwellings: 1 or 2 bedroom dwelling | F21: 10907.66 | G21: 0
A22: B08 | B22: 01 Residential (Material Change of Use/Building Work) | C22: Multiple dwelling - 3 or more bedroom dwelling | D22: Number of dwellings: 3 or more bedroom dwelling | F22: 15270.71 | G22: 0
A23: C01 | B23: 02 Residential Accommodation (short term) | C23: Hotel (residential component) - Bedroom that is not within a suite | D23: Number of bedrooms: Bedroom that is not within a suite | F23: 5453.8 | G23: 0
A24: C02 | B24: 02 Residential Accommodation (short term) | C24: Hotel (residential component) - Suite with 1 or 2 bedrooms | D24: Number of suites: Suite with 1 or 2 bedrooms | F24: 5453.8 | G24: 0
A25: C03 | B25: 02 Residential Accommodation (short term) | C25: Hotel (residential component) - Suite with 3 or more bedrooms | D25: Number of suites: Suite with 3 or more bedrooms | F25: 7635.32 | G25: 0
A26: C04 | B26: 02 Residential Accommodation (short term) | C26: Short-term accommodation - Bedroom that is not within a suite | D26: Number of bedrooms: Bedroom that is not within a suite | F26: 5453.8 | G26: 0
A27: C05 | B27: 02 Residential Accommodation (short term) | C27: Short-term accommodation - Suite with 1 or 2 bedrooms | D27: Number of suites: Suite with 1 or 2 bedrooms | F27: 5453.8 | G27: 0
A28: C06 | B28: 02 Residential Accommodation (short term) | C28: Short-term accommodation - Suite with 3 or more bedrooms | D28: Number of suites: Suite with 3 or more bedrooms | F28: 7635.32 | G28: 0
A29: C07 | B29: 02 Residential Accommodation (short term) | C29: Resort complex (residential component) - Bedroom that is not within a suite | D29: Number of bedrooms: Bedroom that is not within a suite | F29: 5453.8 | G29: 0
A30: C08 | B30: 02 Residential Accommodation (short term) | C30: Resort complex (residential component) - Suite with 1 or 2 bedrooms | D30: Number of suites: Suite with 1 or 2 bedrooms | F30: 5453.8 | G30: 0
A31: C09 | B31: 02 Residential Accommodation (short term) | C31: Resort complex (residential component) - Suite with 3 or more bedrooms | D31: Number of suites: Suite with 3 or more bedrooms | F31: 7635.32 | G31: 0
A32: C10 | B32: 02 Residential Accommodation (short term) | C32: Tourist Park - 1 or 2 tent or caravan sites | D32: Number of sites: 1 or 2 tent or caravan site | F32: 5453.8 | G32: 0
A33: C11 | B33: 02 Residential Accommodation (short term) | C33: Tourist Park - 3 or more tent or caravan sites | D33: Number of sites: 3 or more tent or caravan site | F33: 7635.32 | G33: 0
A34: C12 | B34: 02 Residential Accommodation (short term) | C34: Tourist Park - 1 or 2 bedroom cabin | D34: Number of cabins: 1 or 2 bedroom cabin | F34: 5453.8 | G34: 0
A35: C13 | B35: 02 Residential Accommodation (short term) | C35: Tourist Park - 3 or more bedroom cabin | D35: Number of cabins: 3 or more bedroom cabin | F35: 7635.32 | G35: 0
A36: D01 | B36: 03 Residential Accommodation (long term) | C36: Community residence - Bedroom that is not within a suite | D36: Number of bedrooms: Bedroom that is not within a suite | F36: 10907.66 | G36: 0
A37: D02 | B37: 03 Residential Accommodation (long term) | C37: Community residence - Suite with 1 or 2 bedrooms | D37: Number of suites: Suite with 1 or 2 bedrooms | F37: 10907.66 | G37: 0
A38: D03 | B38: 03 Residential Accommodation (long term) | C38: Community residence - Suite with 3 or more bedrooms | D38: Number of suites: Suite with 3 or more bedrooms | F38: 15270.71 | G38: 0
A39: D04 | B39: 03 Residential Accommodation (long term) | C39: Relocatable home park - 1 or 2 bedroom relocatable dwelling site | D39: Number of sites: 1 or 2 bedroom relocatable dwelling site | F39: 10907.66 | G39: 0
A40: D05 | B40: 03 Residential Accommodation (long term) | C40: Relocatable home park - 3 or more bedroom relocatable dwelling site | D40: Number of sites: 3 or more bedroom relocatable dwelling site | F40: 15270.71 | G40: 0
A41: D06 | B41: 03 Residential Accommodation (long term) | C41: Retirement facility - Bedroom that is not within a suite | D41: Number of bedrooms: Bedroom that is not within a suite | F41: 10907.66 | G41: 0
A42: D07 | B42: 03 Residential Accommodation (long term) | C42: Retirement facility - Suite with 1 or 2 bedrooms | D42: Number of suites: Suite with 1 or 2 bedrooms | F42: 10907.66 | G42: 0
A43: D08 | B43: 03 Residential Accommodation (long term) | C43: Retirement facility - Suite with 3 or more bedrooms | D43: Number of suites: Suite with 3 or more bedrooms | F43: 15270.71 | G43: 0
A44: D09 | B44: 03 Residential Accommodation (long term) | C44: Rooming accommodation - Bedroom that is not within a suite | D44: Number of bedrooms: Bedroom that is not within a suite | F44: 10907.66 | G44: 0
A45: D10 | B45: 03 Residential Accommodation (long term) | C45: Rooming accommodation - Suite with 1 or 2 bedrooms | D45: Number of suites: Suite with 1 or 2 bedrooms | F45: 10907.66 | G45: 0
A46: D11 | B46: 03 Residential Accommodation (long term) | C46: Rooming accommodation - Suite with 3 or more bedrooms | D46: Number of suites: Suite with 3 or more bedrooms | F46: 15270.71 | G46: 0
A48: 4.3 Material Change of Use (Non-Residential - Transport, and Community Purposes)
A49: Code | B49: Category | C49: Sub Category | D49: Demand Unit | F49: AICR10 Charge | G49: Alt. Charge
A50: E01 | B50: 04 Non-Residential Places of assembly | C50: Club | D50: m2 GFA | F50: 37.1 | G50: 0
A51: E02 | B51: 04 Non-Residential Places of assembly | C51: Community use | D51: m2 GFA | F51: 37.1 | G51: 0
A52: E03 | B52: 04 Non-Residential Places of assembly | C52: Function facility | D52: m2 GFA | F52: 37.1 | G52: 0
A53: E04 | B53: 04 Non-Residential Places of assembly | C53: Funeral parlour | D53: m2 GFA | F53: 37.1 | G53: 0
A54: E05 | B54: 04 Non-Residential Places of assembly | C54: Place of worship | D54: m2 GFA | F54: 37.1 | G54: 0
A55: F01 | B55: 05 Non-Residential Commercial (bulk goods) | C55: Agricultural supplies store | D55: m2 GFA | F55: 113.45 | G55: 0
A56: F02 | B56: 05 Non-Residential Commercial (bulk goods) | C56: Bulk landscape supplies | D56: m2 GFA | F56: 113.45 | G56: 0
A57: F03 | B57: 05 Non-Residential Commercial (bulk goods) | C57: Garden centre | D57: m2 GFA | F57: 113.45 | G57: 0
A58: F04 | B58: 05 Non-Residential Commercial (bulk goods) | C58: Hardware and trade supplies | D58: m2 GFA | F58: 113.45 | G58: 0
A59: F05 | B59: 05 Non-Residential Commercial (bulk goods) | C59: Outdoor sales | D59: m2 GFA | F59: 113.45 | G59: 0
A60: F06 | B60: 05 Non-Residential Commercial (bulk goods) | C60: Showroom | D60: m2 GFA | F60: 113.45 | G60: 0
A61: G01 | B61: 06 Non-Residential Commercial (retail) | C61: Adult store | D61: m2 GFA | F61: 157.05 | G61: 0
A62: G02 | B62: 06 Non-Residential Commercial (retail) | C62: Food and drink outlet | D62: m2 GFA | F62: 157.05 | G62: 0
A63: G03 | B63: 06 Non-Residential Commercial (retail) | C63: Service industry | D63: m2 GFA | F63: 157.05 | G63: 0
A64: G04 | B64: 06 Non-Residential Commercial (retail) | C64: Service station | D64: m2 GFA | F64: 157.05 | G64: 0
A65: G05 | B65: 06 Non-Residential Commercial (retail) | C65: Shop | D65: m2 GFA | F65: 157.05 | G65: 0
A66: G06 | B66: 06 Non-Residential Commercial (retail) | C66: Shopping centre | D66: m2 GFA | F66: 157.05 | G66: 0
A67: H01 | B67: 07 Non-Residential Commercial (office) | C67: Office | D67: m2 GFA | F67: 113.45 | G67: 0
A68: H02 | B68: 07 Non-Residential Commercial (office) | C68: Sales Office | D68: m2 GFA | F68: 113.45 | G68: 0
A69: I01 | B69: 08 Non-Residential Education facility | C69: Child care centre | D69: m2 GFA | F69: 113.45 | G69: 0
A70: I02 | B70: 08 Non-Residential Education facility | C70: Community care centre | D70: m2 GFA | F70: 113.45 | G70: 0
A71: I03 | B71: 08 Non-Residential Education facility | C71: Educational establishment | D71: m2 GFA | F71: 113.45 | G71: 0
A72: J01 | B72: 10 Non-Residential Entertainment | C72: Hotel (non-residential component) | D72: m2 GFA | F72: 152.69 | G72: 0
A73: J02 | B73: 10 Non-Residential Entertainment | C73: Nightclub | D73: m2 GFA | F73: 152.69 | G73: 0
A74: J03 | B74: 10 Non-Residential Entertainment | C74: Theatre | D74: m2 GFA | F74: 152.69 | G74: 0
A75: K01 | B75: 11 Non-Residential Indoor sport and recreational facility | C75: Indoor sport and recreation (facility only) | D75: m2 GFA | F75: 152.69 | G75: 0
A76: K02 | B76: 11 Non-Residential Indoor sport and recreational facility | C76: Indoor sport and recreation (court areas) | D76: m2 GFA | F76: 16.32 | G76: 0
A77: L01 | B77: 12 Non-Residential Industry | C77: Low impact industry | D77: m2 GFA | F77: 15.28 | G77: 0
A78: L02 | B78: 12 Non-Residential Industry | C78: Medium impact industry | D78: m2 GFA | F78: 15.28 | G78: 0
A79: L03 | B79: 12 Non-Residential Industry | C79: Research and technology industry | D79: m2 GFA | F79: 15.28 | G79: 0
A80: L04 | B80: 12 Non-Residential Industry | C80: Rural industry | D80: m2 GFA | F80: 15.28 | G80: 0
A81: L05 | B81: 12 Non-Residential Industry | C81: Warehouse | D81: m2 GFA | F81: 15.28 | G81: 0
A82: L06 | B82: 12 Non-Residential Industry | C82: Waterfront and marine industry | D82: m2 GFA | F82: 15.28 | G82: 0
A83: M01 | B83: 13 Non-Residential High impact industry | C83: High impact industry | D83: m2 GFA | F83: 32.71 | G83: 0
A84: M02 | B84: 13 Non-Residential High impact industry | C84: Noxious and hazardous industries | D84: m2 GFA | F84: 32.71 | G84: 0
A85: N01 | B85: 14 Non-Residential Low impact rural | C85: Animal husbandry | D85: m2 GFA | F85: 0 | G85: 0
A86: N02 | B86: 14 Non-Residential Low impact rural | C86: Cropping | D86: m2 GFA | F86: 0 | G86: 0
A87: N03 | B87: 14 Non-Residential Low impact rural | C87: Permanent plantations | D87: m2 GFA | F87: 0 | G87: 0
A88: N04 | B88: 14 Non-Residential Low impact rural | C88: Wind farms | D88: m2 GFA | F88: 0 | G88: 0
A89: O01 | B89: 15 Non-Residential High impact rural | C89: Aquaculture | D89: m2 GFA | F89: 10.88 | G89: 0
A90: O02 | B90: 15 Non-Residential High impact rural | C90: Intensive animal industries | D90: m2 GFA | F90: 10.88 | G90: 0
A91: O03 | B91: 15 Non-Residential High impact rural | C91: Intensive horticulture | D91: m2 GFA | F91: 10.88 | G91: 0
A92: O04 | B92: 15 Non-Residential High impact rural | C92: Wholesale nursery | D92: m2 GFA | F92: 10.88 | G92: 0
A93: O05 | B93: 15 Non-Residential High impact rural | C93: Winery | D93: m2 GFA | F93: 10.88 | G93: 0
A94: P01 | B94: 16 Non-Residential Essential services | C94: Correctional facility | D94: m2 GFA | F94: 113.45 | G94: 0
A95: P02 | B95: 16 Non-Residential Essential services | C95: Emergency services | D95: m2 GFA | F95: 113.45 | G95: 0
A96: P03 | B96: 16 Non-Residential Essential services | C96: Health care services | D96: m2 GFA | F96: 113.45 | G96: 0
A97: P04 | B97: 16 Non-Residential Essential services | C97: Hospital | D97: m2 GFA | F97: 113.45 | G97: 0
A98: P05 | B98: 16 Non-Residential Essential services | C98: Residential care facility | D98: m2 GFA | F98: 113.45 | G98: 0
A99: P06 | B99: 16 Non-Residential Essential services | C99: Veterinary services | D99: m2 GFA | F99: 113.45 | G99: 0
A100: Q01 | B100: 17 Non-Residential Minor uses | C100: Advertising device | D100: m2 GFA | F100: 0 | G100: 0
A101: Q02 | B101: 17 Non-Residential Minor uses | C101: Cemetery | D101: m2 GFA | F101: 0 | G101: 0
A102: Q03 | B102: 17 Non-Residential Minor uses | C102: Home based business | D102: m2 GFA | F102: 0 | G102: 0
A103: Q04 | B103: 17 Non-Residential Minor uses | C103: Landing | D103: m2 GFA | F103: 0 | G103: 0
A104: Q05 | B104: 17 Non-Residential Minor uses | C104: Market | D104: m2 GFA | F104: 0 | G104: 0
A105: Q06 | B105: 17 Non-Residential Minor uses | C105: Outdoor lighting | D105: m2 GFA | F105: 0 | G105: 0
A106: Q07 | B106: 17 Non-Residential Minor uses | C106: Park | D106: m2 GFA | F106: 0 | G106: 0
A107: Q08 | B107: 17 Non-Residential Minor uses | C107: Roadside stalls | D107: m2 GFA | F107: 0 | G107: 0
A108: Q09 | B108: 17 Non-Residential Minor uses | C108: Telecommunications facility | D108: m2 GFA | F108: 0 | G108: 0
A109: Q10 | B109: 17 Non-Residential Minor uses | C109: Temporary use | D109: m2 GFA | F109: 0 | G109: 0
A110: R01 | B110: Other uses | C110: Brothel | D110: m2 GFA | F110: User Defined | G110: 0
A111: R02 | B111: Other uses | C111: Car wash | D111: m2 GFA | F111: User Defined | G111: 0
A112: R03 | B112: Other uses | C112: Environment Facility | D112: m2 GFA | F112: User Defined | G112: 0
A113: R04 | B113: Other uses | C113: Major electricity infrastructure | D113: m2 GFA | F113: User Defined | G113: 0
A114: R05 | B114: Other uses | C114: Nature-based tourism | D114: m2 GFA | F114: User Defined | G114: 0
A115: R06 | B115: Other uses | C115: Substation | D115: m2 GFA | F115: User Defined | G115: 0
A116: R07 | B116: Other uses | C116: Transport depot | D116: m2 GFA | F116: User Defined | G116: 0
A117: R08 | B117: Other uses | C117: Other | D117: m2 GFA | F117: User Defined | G117: 0
A118: S01 | B118: Specialised uses | C118: Air services | D118: m2 GFA | F118: User Defined | G118: 0
A119: S02 | B119: Specialised uses | C119: Animal keeping | D119: m2 GFA | F119: User Defined | G119: 0
A120: S03 | B120: Specialised uses | C120: Car park | D120: m2 GFA | F120: User Defined | G120: 0
A121: S04 | B121: Specialised uses | C121: Crematorium | D121: m2 GFA | F121: User Defined | G121: 0
A122: S05 | B122: Specialised uses | C122: Extractive industry | D122: m2 GFA | F122: User Defined | G122: 0
A123: S06 | B123: Specialised uses | C123: Major sport, recreation and entertainment facility | D123: m2 GFA | F123: User Defined | G123: 0
A124: S07 | B124: Specialised uses | C124: Motor sport | D124: m2 GFA | F124: User Defined | G124: 0
A125: S08 | B125: Specialised uses | C125: Non-resident workforce accommodation | D125: m2 GFA | F125: User Defined | G125: 0
A126: S09 | B126: Specialised uses | C126: Outdoor sport and recreation | D126: m2 GFA | F126: User Defined | G126: 0
A127: S10 | B127: Specialised uses | C127: Port services | D127: m2 GFA | F127: User Defined | G127: 0
A128: S11 | B128: Specialised uses | C128: Tourist attraction | D128: m2 GFA | F128: User Defined | G128: 0
A129: S12 | B129: Specialised uses | C129: Utility installation | D129: m2 GFA | F129: User Defined | G129: 0
A131: 4.4 Material Change of Use (Non-Residential - Waterways)
A132: Code | B132: Category | C132: Sub Category | D132: Demand Unit | F132: AICR5 Charge | G132: Alt. Charge
A133: T01 | B133: 18 Non-Residential Stormwater | C133: Stormwater impervious area | D133: Impervious area in m2 | F133: 10.91 | G133: 0

Sheet Adopted Charge Revenue Forecast
A1: Local Government Infrastructure Plan
A2: Brisbane City Council
A3: =Coversheet!C8 -> 2022-08-22 | I3: Input
I4: Formula
A5: 5.1 | B5: Anticipated infrastructure charges revenue ($'000)
D8: Model year | F8: 0 | G8: 1 | H8: 2 | I8: 3 | J8: 4 | K8: 5 | L8: 6 | M8: 7 | N8: 8 | O8: 9 | P8: 10
B9: Development type | D9: 2021 NPV | F9: 2021 (1) | G9: 2022 | H9: 2023 | I9: 2024 | J9: 2025 | K9: 2026 | L9: 2027 | M9: 2028 | N9: 2029 | O9: 2030 | P9: 2031 | Q9: 2032 | R9: 2033 | S9: 2034 | T9: 2035 | U9: 2036
B10: Residential | D10: =F10+NPV(WACC,G10:P10) -> 451975.4284 | F10: 0 | G10: =HLOOKUP(G9,'Growth (Residential)'!$E$40:$S$51,12,FALSE)/1000 -> 53800.58096 | H10: =HLOOKUP(H9,'Growth (Residential)'!$E$40:$S$51,12,FALSE)/1000 -> 54780.04057 | I10: =HLOOKUP(I9,'Growth (Residential)'!$E$40:$S$51,12,FALSE)/1000 -> 55777.33161 | J10: =HLOOKUP(J9,'Growth (Residential)'!$E$40:$S$51,12,FALSE)/1000 -> 56792.7787 | K10: =HLOOKUP(K9,'Growth (Residential)'!$E$40:$S$51,12,FALSE)/1000 -> 57826.71238 | L10: =HLOOKUP(L9,'Growth (Residential)'!$E$40:$S$51,12,FALSE)/1000 -> 66122.85169 | M10: =HLOOKUP(M9,'Growth (Residential)'!$E$40:$S$51,12,FALSE)/1000 -> 67326.64282 | N10: =HLOOKUP(N9,'Growth (Residential)'!$E$40:$S$51,12,FALSE)/1000 -> 68552.34942 | O10: =HLOOKUP(O9,'Growth (Residential)'!$E$40:$S$51,12,FALSE)/1000 -> 69800.37047 | P10: =HLOOKUP(P9,'Growth (Residential)'!$E$40:$S$51,12,FALSE)/1000 -> 71071.1122 | Q10: =HLOOKUP(Q9,'Growth (Residential)'!$E$40:$S$51,12,FALSE)/1000 -> 91733.85305 | R10: =HLOOKUP(R9,'Growth (Residential)'!$E$40:$S$51,12,FALSE)/1000 -> 93403.902 | S10: =HLOOKUP(S9,'Growth (Residential)'!$E$40:$S$51,12,FALSE)/1000 -> 95104.35481 | T10: =HLOOKUP(T9,'Growth (Residential)'!$E$40:$S$51,12,FALSE)/1000 -> 96835.765 | U10: =HLOOKUP(U9,'Growth (Residential)'!$E$40:$S$51,12,FALSE)/1000 -> 98598.69616
B11: Non-residential | D11: =F11+NPV(WACC,G11:P11) -> 284781.8082 | F11: 0 | G11: =HLOOKUP(G9,'Growth (Non-Residential)'!$E$43:$S$57,15,FALSE)/1000 -> 36965.26825 | H11: =HLOOKUP(H9,'Growth (Non-Residential)'!$E$43:$S$57,15,FALSE)/1000 -> 37638.23472 | I11: =HLOOKUP(I9,'Growth (Non-Residential)'!$E$43:$S$57,15,FALSE)/1000 -> 38323.4528 | J11: =HLOOKUP(J9,'Growth (Non-Residential)'!$E$43:$S$57,15,FALSE)/1000 -> 39021.14553 | K11: =HLOOKUP(K9,'Growth (Non-Residential)'!$E$43:$S$57,15,FALSE)/1000 -> 39731.54001 | L11: =HLOOKUP(L9,'Growth (Non-Residential)'!$E$43:$S$57,15,FALSE)/1000 -> 37576.62311 | M11: =HLOOKUP(M9,'Growth (Non-Residential)'!$E$43:$S$57,15,FALSE)/1000 -> 38260.71953 | N11: =HLOOKUP(N9,'Growth (Non-Residential)'!$E$43:$S$57,15,FALSE)/1000 -> 38957.27017 | O11: =HLOOKUP(O9,'Growth (Non-Residential)'!$E$43:$S$57,15,FALSE)/1000 -> 39666.50178 | P11: =HLOOKUP(P9,'Growth (Non-Residential)'!$E$43:$S$57,15,FALSE)/1000 -> 40388.64521 | Q11: =HLOOKUP(Q9,'Growth (Non-Residential)'!$E$43:$S$57,15,FALSE)/1000 -> 41123.93554 | R11: =HLOOKUP(R9,'Growth (Non-Residential)'!$E$43:$S$57,15,FALSE)/1000 -> 41872.6121 | S11: =HLOOKUP(S9,'Growth (Non-Residential)'!$E$43:$S$57,15,FALSE)/1000 -> 42634.91859 | T11: =HLOOKUP(T9,'Growth (Non-Residential)'!$E$43:$S$57,15,FALSE)/1000 -> 43411.10316 | U11: =HLOOKUP(U9,'Growth (Non-Residential)'!$E$43:$S$57,15,FALSE)/1000 -> 44201.41845
B12: Non-residential (Stormwater) | D12: =F12+NPV(WACC,G12:P12) -> 40969.59757 | F12: 0 | G12: =HLOOKUP(G9,'Growth (Impervious Area)'!$E$17:$S$18,2,FALSE)/1000 -> 5095.469419 | H12: =HLOOKUP(H9,'Growth (Impervious Area)'!$E$17:$S$18,2,FALSE)/1000 -> 5188.234337 | I12: =HLOOKUP(I9,'Growth (Impervious Area)'!$E$17:$S$18,2,FALSE)/1000 -> 5282.688075 | J12: =HLOOKUP(J9,'Growth (Impervious Area)'!$E$17:$S$18,2,FALSE)/1000 -> 5378.861378 | K12: =HLOOKUP(K9,'Growth (Impervious Area)'!$E$17:$S$18,2,FALSE)/1000 -> 5476.785552 | L12: =HLOOKUP(L9,'Growth (Impervious Area)'!$E$17:$S$18,2,FALSE)/1000 -> 5702.342176 | M12: =HLOOKUP(M9,'Growth (Impervious Area)'!$E$17:$S$18,2,FALSE)/1000 -> 5806.155438 | N12: =HLOOKUP(N9,'Growth (Impervious Area)'!$E$17:$S$18,2,FALSE)/1000 -> 5911.85866 | O12: =HLOOKUP(O9,'Growth (Impervious Area)'!$E$17:$S$18,2,FALSE)/1000 -> 6019.486248 | P12: =HLOOKUP(P9,'Growth (Impervious Area)'!$E$17:$S$18,2,FALSE)/1000 -> 6129.073236 | Q12: =HLOOKUP(Q9,'Growth (Impervious Area)'!$E$17:$S$18,2,FALSE)/1000 -> 5633.60683 | R12: =HLOOKUP(R9,'Growth (Impervious Area)'!$E$17:$S$18,2,FALSE)/1000 -> 5736.16874 | S12: =HLOOKUP(S9,'Growth (Impervious Area)'!$E$17:$S$18,2,FALSE)/1000 -> 5840.597828 | T12: =HLOOKUP(T9,'Growth (Impervious Area)'!$E$17:$S$18,2,FALSE)/1000 -> 5946.928086 | U12: =HLOOKUP(U9,'Growth (Impervious Area)'!$E$17:$S$18,2,FALSE)/1000 -> 6055.194126
B13: Total revenue | D13: 848085.8762 | F13: 70359.04198 | G13: =SUM(G10:G12) -> 95861.31863 | H13: =SUM(H10:H12) -> 97606.50963 | I13: 99383.47248 | J13: 101192.7856 | K13: 103035.0379 | L13: 109401.817 | M13: 111393.5178 | N13: 113421.4783 | O13: 115486.3585 | P13: 117588.8307 | Q13: 138491.3954 | R13: 141012.6828 | S13: 143579.8712 | T13: 146193.7962 | U13: 148855.3087
B15: Notes:
B16: (1) Actual charges revenue for 2020-2021 financial year

Sheet LGIP Cash Flow Analysis
A1: Local Government Infrastructure Plan
A2: Brisbane City Council | E2: Input
A3: =Coversheet!C8 -> 2022-08-22 | E3: Formula
A5: 6.1 | B5: LGIP Summary Cash Flow Projections ($,000's)
B8: Cost Category | C8: Sub-category | E8: 2021 NPV | G8: 2021 | H8: 2022 | I8: 2023 | J8: 2024 | K8: 2025 | L8: 2026 | M8: 2027 | N8: 2028 | O8: 2029 | P8: 2030 | Q8: 2031 | R8: 2032 | S8: 2033 | T8: 2034 | U8: 2035 | V8: 2036
B9: Anticipated Cost (Cap X in $'000) | C9: Local Roads | E9: =G9+NPV(WACC,H9:Q9) -> 1523002.245 | H9: 188723.2378 | I9: 188723.2378 | J9: 188723.2378 | K9: 188723.2378 | L9: 188723.2378 | M9: 229128.9962 | N9: 229128.9962 | O9: 229128.9962 | P9: 229128.9962 | Q9: 229128.9962 | R9: 245615.1348 | S9: 245615.1348 | T9: 245615.1348 | U9: 245615.1348 | V9: 245615.1348
C10: Pathway | E10: 588714.3791 | H10: 84663.5158 | I10: 84663.5158 | J10: 84663.5158 | K10: 84663.5158 | L10: 84663.5158 | M10: 72961.5348 | N10: 72961.5348 | O10: 72961.5348 | P10: 72961.5348 | Q10: 72961.5348 | R10: 1178.7868 | S10: 1178.7868 | T10: 1178.7868 | U10: 1178.7868 | V10: 1178.7868
C11: Ferry Terminals | E11: 93169.30525 | H11: 18973.065 | I11: 18973.065 | J11: 18973.065 | K11: 18973.065 | L11: 18973.065 | M11: 4118.7474 | N11: 4118.7474 | O11: 4118.7474 | P11: 4118.7474 | Q11: 4118.7474 | R11: 4205.6002 | S11: 4205.6002 | T11: 4205.6002 | U11: 4205.6002 | V11: 4205.6002
C12: Public Parks | E12: 522595.2595 | H12: 64046.7934 | I12: 64046.7934 | J12: 64046.7934 | K12: 64046.7934 | L12: 64046.7934 | M12: 79569.2608 | N12: 79569.2608 | O12: 79569.2608 | P12: 79569.2608 | Q12: 79569.2608 | R12: 92637.729 | S12: 92637.729 | T12: 92637.729 | U12: 92637.729 | V12: 92637.729
C13: Land for Community Facilities | E13: 84785.81948 | H13: 1636.0418 | I13: 1636.0418 | J13: 1636.0418 | K13: 1636.0418 | L13: 1636.0418 | M13: 24575.6966 | N13: 24575.6966 | O13: 24575.6966 | P13: 24575.6966 | Q13: 24575.6966 | R13: 6240.6626 | S13: 6240.6626 | T13: 6240.6626 | U13: 6240.6626 | V13: 6240.6626
C14: Stormwater | E14: 88537.98982 | H14: 11571.8804 | I14: 11571.8804 | J14: 11571.8804 | K14: 11571.8804 | L14: 11571.8804 | M14: 12519.7246 | N14: 12519.7246 | O14: 12519.7246 | P14: 12519.7246 | Q14: 12519.7246 | R14: 16036.3054 | S14: 16036.3054 | T14: 16036.3054 | U14: 16036.3054 | V14: 16036.3054
C15: Total Network Costs | E15: 2900804.998 | H15: =SUM(H9:H14) -> 369614.5342 | I15: 369614.5342 | J15: 369614.5342 | K15: 369614.5342 | L15: 369614.5342 | M15: 422873.9604 | N15: 422873.9604 | O15: 422873.9604 | P15: 422873.9604 | Q15: 422873.9604 | R15: 365914.2188 | S15: 365914.2188 | T15: 365914.2188 | U15: 365914.2188 | V15: 365914.2188
B16: Anticipated Charges Revenue ($'000) | C16: Residential | E16: =G16+NPV(WACC,H16:Q16) -> 451975.4284 | G16: ='Adopted Charge Revenue Forecast'!F10 -> 0 | H16: ='Adopted Charge Revenue Forecast'!G10 -> 53800.58096 | I16: ='Adopted Charge Revenue Forecast'!H10 -> 54780.04057 | J16: ='Adopted Charge Revenue Forecast'!I10 -> 55777.33161 | K16: ='Adopted Charge Revenue Forecast'!J10 -> 56792.7787 | L16: ='Adopted Charge Revenue Forecast'!K10 -> 57826.71238 | M16: ='Adopted Charge Revenue Forecast'!L10 -> 66122.85169 | N16: ='Adopted Charge Revenue Forecast'!M10 -> 67326.64282 | O16: ='Adopted Charge Revenue Forecast'!N10 -> 68552.34942 | P16: ='Adopted Charge Revenue Forecast'!O10 -> 69800.37047 | Q16: ='Adopted Charge Revenue Forecast'!P10 -> 71071.1122 | R16: ='Adopted Charge Revenue Forecast'!Q10 -> 91733.85305 | S16: ='Adopted Charge Revenue Forecast'!R10 -> 93403.902 | T16: ='Adopted Charge Revenue Forecast'!S10 -> 95104.35481 | U16: ='Adopted Charge Revenue Forecast'!T10 -> 96835.765 | V16: ='Adopted Charge Revenue Forecast'!U10 -> 98598.69616
C17: Non-residential | E17: 284781.8082 | G17: ='Adopted Charge Revenue Forecast'!F11 -> 0 | H17: ='Adopted Charge Revenue Forecast'!G11 -> 36965.26825 | I17: ='Adopted Charge Revenue Forecast'!H11 -> 37638.23472 | J17: ='Adopted Charge Revenue Forecast'!I11 -> 38323.4528 | K17: ='Adopted Charge Revenue Forecast'!J11 -> 39021.14553 | L17: ='Adopted Charge Revenue Forecast'!K11 -> 39731.54001 | M17: ='Adopted Charge Revenue Forecast'!L11 -> 37576.62311 | N17: ='Adopted Charge Revenue Forecast'!M11 -> 38260.71953 | O17: ='Adopted Charge Revenue Forecast'!N11 -> 38957.27017 | P17: ='Adopted Charge Revenue Forecast'!O11 -> 39666.50178 | Q17: ='Adopted Charge Revenue Forecast'!P11 -> 40388.64521 | R17: ='Adopted Charge Revenue Forecast'!Q11 -> 41123.93554 | S17: ='Adopted Charge Revenue Forecast'!R11 -> 41872.6121 | T17: ='Adopted Charge Revenue Forecast'!S11 -> 42634.91859 | U17: ='Adopted Charge Revenue Forecast'!T11 -> 43411.10316 | V17: ='Adopted Charge Revenue Forecast'!U11 -> 44201.41845
C18: Non-residential (Stormwater component) | E18: 40969.59757 | G18: ='Adopted Charge Revenue Forecast'!F12 -> 0 | H18: ='Adopted Charge Revenue Forecast'!G12 -> 5095.469419 | I18: ='Adopted Charge Revenue Forecast'!H12 -> 5188.234337 | J18: ='Adopted Charge Revenue Forecast'!I12 -> 5282.688075 | K18: ='Adopted Charge Revenue Forecast'!J12 -> 5378.861378 | L18: ='Adopted Charge Revenue Forecast'!K12 -> 5476.785552 | M18: ='Adopted Charge Revenue Forecast'!L12 -> 5702.342176 | N18: ='Adopted Charge Revenue Forecast'!M12 -> 5806.155438 | O18: ='Adopted Charge Revenue Forecast'!N12 -> 5911.85866 | P18: ='Adopted Charge Revenue Forecast'!O12 -> 6019.486248 | Q18: ='Adopted Charge Revenue Forecast'!P12 -> 6129.073236 | R18: ='Adopted Charge Revenue Forecast'!Q12 -> 5633.60683 | S18: ='Adopted Charge Revenue Forecast'!R12 -> 5736.16874 | T18: ='Adopted Charge Revenue Forecast'!S12 -> 5840.597828 | U18: ='Adopted Charge Revenue Forecast'!T12 -> 5946.928086 | V18: ='Adopted Charge Revenue Forecast'!U12 -> 6055.194126
C19: Total revenue | E19: 848085.8762 | G19: ='Adopted Charge Revenue Forecast'!F13 -> 70359.04198 | H19: =SUM(H16:H18) -> 95861.31863 | I19: 97606.50963 | J19: 99383.47248 | K19: 101192.7856 | L19: 103035.0379 | M19: 109401.817 | N19: 111393.5178 | O19: 113421.4783 | P19: 115486.3585 | Q19: 117588.8307 | R19: 138491.3954 | S19: 141012.6828 | T19: 143579.8712 | U19: 146193.7962 | V19: 148855.3087
B20: Annual Cash Flow ($'000) | C20: N/A | E20: -2052719.122 | G20: =G19-G15 -> 70359.04198 | H20: =H19-H15 -> -273753.2156 | I20: -272008.0246 | J20: -270231.0617 | K20: -268421.7486 | L20: -266579.4963 | M20: -313472.1434 | N20: -311480.4426 | O20: -309452.4821 | P20: -307387.6019 | Q20: -305285.1297 | R20: -227422.8234 | S20: -224901.536 | T20: -222334.3476 | U20: -219720.4226 | V20: -217058.9101
B21: Cumulative Cash Flow ($'000) | C21: N/A | E21: N/A | G21: =G20 -> 70359.04198 | H21: =H20+G21 -> -203394.1736 | I21: =I20+H21 -> -475402.1982 | J21: -745633.2599 | K21: -1014055.008 | L21: -1280634.505 | M21: -1594106.648 | N21: -1905587.091 | O21: -2215039.573 | P21: =P20+O21 -> -2522427.175 | Q21: =Q20+P21 -> -2827712.305 | R21: =R20+Q21 -> -3055135.128 | S21: =S20+R21 -> -3280036.664 | T21: =T20+S21 -> -3502371.011 | U21: =U20+T21 -> -3722091.434 | V21: =V20+U21 -> -3939150.344
B22: Additional funding required | C22: N/A | E22: N/A | G22: =G20 -> 70359.04198 | H22: =H20+G22 -> -203394.1736 | I22: =I20+H22 -> -475402.1982 | J22: -745633.2599 | K22: -1014055.008 | L22: -1280634.505 | M22: -1594106.648 | N22: -1905587.091 | O22: -2215039.573 | P22: =P20+O22 -> -2522427.175 | Q22: =Q20+P22 -> -2827712.305 | R22: =R20+Q22 -> -3055135.128 | S22: =S20+R22 -> -3280036.664 | T22: =T20+S22 -> -3502371.011 | U22: =U20+T22 -> -3722091.434 | V22: =V20+U22 -> -3939150.344
